Cogmind - Beta 16 @@@ ROGUE MODE // 2025.11.25 @ 22:14:49 Player: Skysub Result: Escaped! Performance ------------- Evolutions (9) 4500 Regions Visited (14) 2800 Robots Destroyed (13) 65 Value Destroyed (145) 145 Prototype IDs (24) 480 Alien Tech Used (0) 0 Bonus (28257) 28257 TOTAL SCORE: 36247 Bonus ------- Entered DSFs 1000 Aligned with FarCom 300 Win 3000 Win Speed 23957 Cogmind --------- Core Integrity 1578/1600 Matter 260/300 Energy 431/495 System Corruption 0% Temperature Warm (180) Movement Flying (17) Location To Epsilon Eridani Parts ------- > --- POWER (4) -------- Improved Ion Engine Nuclear Core Light Quantum Reactor > --- PROPULSION (9) --- Improved Surge Thruster Impulse Thruster Impulse Thruster Impulse Thruster Impulse Thruster Q-thruster Q-thruster Cooled Impulse Thruster > --- UTILITY (10) ----- Cooling System Structural Scanner Enhanced Optical Array Transmission Jammer Hacking Suite Hacking Suite System Shield Improved System Shield > --- WEAPON (2) ------- Longsword +1 > --- INVENTORY (5) ---- Light Ion Engine Advanced Weight Redist. System Great Axe Peak State ------------ > --- POWER ------------ Light Ion Engine Improved Ion Engine Nuclear Core Light Quantum Reactor > --- PROPULSION ------- Improved Surge Thruster Nuclear Pulse Array Impulse Thruster Impulse Thruster Impulse Thruster Impulse Thruster Q-thruster Q-thruster > --- UTILITY ---------- Cooling System Structural Scanner Enhanced Optical Array Stasis Canceller Transmission Jammer Hacking Suite Hacking Suite System Shield Improved System Shield > --- WEAPON ----------- Longsword +1 > --- INVENTORY -------- Light Ion Engine Advanced Weight Redist. System Great Axe [Rating: 115] Favorites ----------- Power Light Nuclear Core Engine Light Angular Momentum Engine Power Core Light Nuclear Core Reactor Light Quantum Reactor Propulsion Impulse Thruster Hover Unit Improved Gravmag System Flight Unit Impulse Thruster Utility Structural Scanner Device Structural Scanner Processor Advanced Visual Processing Unit Hackware Improved System Shield Protection Hardened Light Armor Plating Weapon Longsword +1 Slashing Weapon Longsword +1 Build | -11 -10 -10 -10 -9 -8 -7 -6 -5 -5 -4 -3 -3 -2 -1 ------- Run | Yrd Mat Min Exi Min Mat Fac Fac Fac DSF Fac Res DSF Res Acc Slots Evolved 18 | . . . . . 4 2 2 2 . 2 2 . 2 2 Power 3 | . . . . . . 1 . . . 1 . . 1 . Propulsion 7 | . . . . . 2 1 1 . . 1 1 . 1 . Utility 8 | . . . . . 2 . 1 2 . . 1 . . 2 Weapon . | . . . . . . . . . . . . . . . Parts Attached 44 | . . . 1 . 2 8 11 . 7 2 4 . 4 5 Power 8 | . . . . . . 2 2 . . 1 . . 2 1 Engine 5 | . . . . . . 1 1 . . 1 . . 2 . Core 2 | . . . . . . 1 1 . . . . . . . Reactor 1 | . . . . . . . . . . . . . . 1 Propulsion 19 | . . . . . 1 1 6 . 6 . 2 . 1 2 Treads . | . . . . . . . . . . . . . . . Leg . | . . . . . . . . . . . . . . . Wheel . | . . . . . . . . . . . . . . . Hover 4 | . . . . . 1 1 2 . . . . . . . Flight 15 | . . . . . . . 4 . 6 . 2 . 1 2 Utility 16 | . . . . . 1 5 3 . 1 1 2 . 1 2 Device 6 | . . . . . . 4 . . . 1 1 . . . Storage . | . . . . . . . . . . . . . . . Processor 3 | . . . . . 1 1 . . 1 . . . . . Hackware 5 | . . . . . . . 1 . . . 1 . 1 2 Protection 2 | . . . . . . . 2 . . . . . . . Artifact . | . . . . . . . . . . . . . . . Weapon 1 | . . . 1 . . . . . . . . . . . Energy Gun . | . . . . . . . . . . . . . . . Energy Cannon . | . . . . . . . . . . . . . . . Ballistic Gun . | . . . . . . . . . . . . . . . Ballistic Cannon . | . . . . . . . . . . . . . . . Launcher . | . . . . . . . . . . . . . . . Special Weapon . | . . . . . . . . . . . . . . . Impact Weapon . | . . . . . . . . . . . . . . . Slashing Weapon 1 | . . . 1 . . . . . . . . . . . Piercing Weapon . | . . . . . . . . . . . . . . . Special Melee Weapon . | . . . . . . . . . . . . . . . Unidentified Prototypes 1 | . . . . . . . . . . . . . . 1 Parts Lost 17 | . . . . . . . 7 . 5 . . . . 5 Power 3 | . . . . . . . 1 . 1 . . . . 1 Propulsion 10 | . . . . . . . 5 . 3 . . . . 2 Utility 4 | . . . . . . . 1 . 1 . . . . 2 Weapon . | . . . . . . . . . . . . . . . Highest Loss Streak 7 | . . . . . . . 7 . 5 . . . . 5 To Critical Strikes . | . . . . . . . . . . . . . . . Average Backups 3 | 1 2 2 3 3 3 3 4 4 3 2 3 4 3 2 Power 1 | 1 2 2 2 2 2 1 1 1 . . . . . . Propulsion . | . . . . . . . . . . . . . . . Utility 1 | . . . 1 1 1 2 3 3 2 1 1 3 2 1 Weapon . | . . . . . . . . . . 1 1 1 1 1 Tool/Special . | . . . . . . . . . . . . . . . Unused Backups 6 | . . . . . 1 . 2 . . . 1 1 . 1 Power 2 | . . . . . 1 . 1 . . . . . . . Propulsion 1 | . . . . . . . . . . . 1 . . . Utility 1 | . . . . . . . 1 . . . . . . . Weapon 2 | . . . . . . . . . . . . 1 . 1 Tool/Special . | . . . . . . . . . . . . . . . Average Slot Usage (%) 47 | . . . 5 14 9 51 65 62 67 78 84 85 87 84 Engine 3 | . . . . . . 2 6 5 2 2 4 4 9 7 Core 2 | . . . . . . 6 4 . 1 5 4 4 4 4 Hover 5 | . . . . . . 14 14 5 5 5 . . . . Flight 8 | . . . . . . . 4 11 12 26 31 33 34 31 Device 9 | . . . . . . 13 13 13 17 18 22 19 14 13 Processor 6 | . . . . . 7 7 13 11 11 10 9 9 7 4 Hackware 2 | . . . . . . . . 5 5 5 5 9 12 16 Slashing Weapon 5 | . . . 5 14 1 5 6 5 5 5 4 4 4 4 Peak Build Rating 115 | . . 1 9 9 9 31 53 46 69 72 93 91 100 115 Average Rating 36 | . . . 4 9 5 25 36 42 49 70 89 90 98 107 On Entrance 37 | . . . 1 9 9 8 28 40 46 69 72 90 91 100 Avg Prop Armor Cover (%) 5 | . . . . . . . 5 6 6 7 3 . 2 . Naked Turns 98 | . 6 31 57 . 4 . . . . . . . . . Heaviest Build 43 | . . . 3 3 3 15 26 19 19 17 21 17 31 43 Greatest Support 61 | 3 3 3 3 3 8 24 40 19 30 33 54 54 58 61 Greatest Overweight (x) . | . . . . . . . . . . . . . . . Average Overweight (x) . | . . . . . . . . . . . . . . . Largest Inventory Capacity 5 | 5 5 5 5 5 5 5 5 5 5 5 5 5 5 5 Average Capacity 5 | 5 5 5 5 5 5 5 5 5 5 5 5 5 5 5 Most Carried 5 | 2 2 4 4 4 5 5 5 5 5 4 5 5 4 3 Average Carried 3 | 1 2 2 4 4 4 3 4 4 3 3 4 4 3 2 Final Capacity 5 | 5 5 5 5 5 5 5 5 5 5 5 5 5 5 5 Final Carried 5 | 2 2 4 4 4 5 5 5 3 4 4 5 5 3 3 Scrap Suit Usage (%) 7 | . . . . . . 40 . . . . . . . . Class Distribution -------------------- 43% | Mutant 20% | Scout 18% | Infiltrator-Ninja 14% | Hacker-Ninja 4% | Scientist-Scout Dominant Class ---------------- Mutant | -10/Materials Mutant | -10/Mines Mutant | -10/Exiles Mutant | -9/Mines Mutant | -8/Materials Mutant | -7/Factory Scout | -6/Factory Scout | -5/Factory Infiltrator-Ninja | -5/DSF Infiltrator-Ninja | -4/Factory Infiltrator-Ninja | -3/Research Infiltrator-Ninja | -3/DSF Infiltrator-Ninja | -2/Research Hacker-Ninja | -1/Access Resources | -11 -10 -10 -10 -9 -8 -7 -6 -5 -5 -4 -3 -3 -2 -1 ----------- Run | Yrd Mat Min Exi Min Mat Fac Fac Fac DSF Fac Res DSF Res Acc Matter Collected 630 | 125 . 62 . 20 . 80 56 . 1 44 118 . 124 . Remotely . | . . . . . . . . . . . . . . . Salvage Created 772 | . . . . 91 . 111 88 . . 44 142 . 283 13 Parts 36 | . . . . 3 . 5 3 . . 6 7 . 11 1 Haulers Intercepted 1 | . . . . . . . 1 . . . . . . . Recyclers Shooed 1 | . . . . . . . . . . . 1 . . . Parts Field Recycled . | . . . . . . . . . . . . . . . Retrieved Matter . | . . . . . . . . . . . . . . . Parts Self-Destructed . | . . . . . . . . . . . . . . . Prevented . | . . . . . . . . . . . . . . . Parts Restored . | . . . . . . . . . . . . . . . Kills | -11 -10 -10 -10 -9 -8 -7 -6 -5 -5 -4 -3 -3 -2 -1 ------- Run | Yrd Mat Min Exi Min Mat Fac Fac Fac DSF Fac Res DSF Res Acc Combat Hostiles Destroyed 2 | . . . . 2 . . . . . . . . . . Melee 2 | . . . . 2 . . . . . . . . . . Classes Destroyed 7 | . . . . 3 . 1 1 . . 1 1 . . . Worker 2 | . . . . . . . . . . 1 . . 1 . Builder 2 | . . . . 1 . 1 . . . . . . . . Tunneler 2 | . . . . 1 . . . . . 1 . . . . Hauler 1 | . . . . . . . 1 . . . . . . . Recycler 4 | . . . . . . 1 . . . . 1 . 2 . Operator 2 | . . . . . . . . . . . 1 . . 1 Assembled 2 | . . . . 2 . . . . . . . . . . Best Kill Streak 3 | . . . . 2 . 2 1 . . 2 2 . 3 1 Combat Bots Only 2 | . . . . 2 . . . . . . . . . . Max Kills in Single Turn 1 | . . . . 1 . 1 1 . . 1 1 . 1 1 Gunslinging . | . . . . . . . . . . . . . . . Exploded . | . . . . . . . . . . . . . . . Melee 1 | . . . . 1 . . . . . . . . . . Uniques/NPCs Destroyed . | . . . . . . . . . . . . . . . Combat | -11 -10 -10 -10 -9 -8 -7 -6 -5 -5 -4 -3 -3 -2 -1 -------- Run | Yrd Mat Min Exi Min Mat Fac Fac Fac DSF Fac Res DSF Res Acc Hostile Shots Fired 142 | . . . . 19 21 . 53 . 9 4 . 1 . 35 Missed 65 | . . . . 6 9 . 24 . 2 2 . 1 . 21 Hits 77 | . . . . 13 12 . 29 . 7 2 . . . 14 Projectile 77 | . . . . 13 12 . 29 . 7 2 . . . 14 AOE 3 | . . . . . . . 3 . . . . . . . Critical Strikes 2 | . . . . . . . 1 . 1 . . . . . Damage Taken 1762 | . . 3 . 144 148 . 628 . 350 41 . 18 . 430 Core 357 | . . 3 . 114 113 . 42 . 63 . . . . 22 Absorbed by Shields . | . . . . . . . . . . . . . . . Core Remaining (%) 91 | 100 . . . 53 79 100 95 . 93 100 . 100 100 98 Volleys Fired . | . . . . . . . . . . . . . . . Largest . | . . . . . . . . . . . . . . . Hottest . | . . . . . . . . . . . . . . . Shots Fired . | . . . . . . . . . . . . . . . Gun . | . . . . . . . . . . . . . . . Cannon . | . . . . . . . . . . . . . . . Launcher . | . . . . . . . . . . . . . . . Special . | . . . . . . . . . . . . . . . Kinetic . | . . . . . . . . . . . . . . . Thermal . | . . . . . . . . . . . . . . . Explosive . | . . . . . . . . . . . . . . . Electromagnetic . | . . . . . . . . . . . . . . . Robot Hit Streak . | . . . . . . . . . . . . . . . Robot Miss Streak . | . . . . . . . . . . . . . . . Penetration Max . | . . . . . . . . . . . . . . . Secondary Targets . | . . . . . . . . . . . . . . . Shots Hit Robots 18 | . . . . 4 . 2 1 2 . 2 4 . 3 . Core Hits 12 | . . . . 2 . 2 1 . . 2 2 . 2 1 Critical Kills . | . . . . . . . . . . . . . . . Critical Parts Destroyed . | . . . . . . . . . . . . . . . Critical Strikes . | . . . . . . . . . . . . . . . Melee Attacks 43 | . . . . 11 . 5 3 2 . 6 4 . 6 6 Impact . | . . . . . . . . . . . . . . . Slashing 43 | . . . . 11 . 5 3 2 . 6 4 . 6 6 Piercing . | . . . . . . . . . . . . . . . Sneak Attacks 11 | . . . . 2 . 2 1 . . 2 1 . 3 . Combat Hostiles . | . . . . . . . . . . . . . . . Follow-up Attacks . | . . . . . . . . . . . . . . . Damage Inflicted 1563 | . . 6 . 313 . 181 78 106 . 204 254 . 323 98 Guns . | . . . . . . . . . . . . . . . Cannons . | . . . . . . . . . . . . . . . Explosions 98 | . . . . . . . . . . . . . . 98 Melee 1459 | . . . . 313 . 181 78 106 . 204 254 . 323 . Ramming 6 | . . 6 . . . . . . . . . . . . Kinetic . | . . . . . . . . . . . . . . . Thermal 98 | . . . . . . . . . . . . . . 98 Explosive . | . . . . . . . . . . . . . . . Electromagnetic . | . . . . . . . . . . . . . . . Impact . | . . . . . . . . . . . . . . . Slashing 1459 | . . . . 313 . 181 78 106 . 204 254 . 323 . Piercing . | . . . . . . . . . . . . . . . Highest Corruption 1 | . . . . . 1 . . . . 1 . . . . Average Corruption 1 | . . . . . 1 . . . . 1 . . . . Corruption Purged . | . . . . . . . . . . . . . . . Corruption Blocked . | . . . . . . . . . . . . . . . Overload Shots . | . . . . . . . . . . . . . . . Overflow Damage 270 | . . . . 106 . . . 24 . . 22 . 79 39 Projectiles . | . . . . . . . . . . . . . . . Explosions 39 | . . . . . . . . . . . . . . 39 Melee 231 | . . . . 106 . . . 24 . . 22 . 79 . Knockbacks . | . . . . . . . . . . . . . . . Impact . | . . . . . . . . . . . . . . . Kinetic . | . . . . . . . . . . . . . . . Secondary . | . . . . . . . . . . . . . . . Self-Inflicted Damage 108 | . . 3 . . . . . . . . . . . 105 Shots 1 | . . . . . . . . . . . . . . 1 Rammed 1 | . . 1 . . . . . . . . . . . . Targets Rammed 1 | . . 1 . . . . . . . . . . . . Kicked . | . . . . . . . . . . . . . . . Crushed . | . . . . . . . . . . . . . . . Highest Temperature 305 | . . . . . . . 305 . . . 73 . 72 240 Average Temperature 76 | . . . . . . . 163 . . . 23 . 27 83 Received Heat Transfer 549 | . . . . 86 45 . 409 . . . . . . 9 Effects 1 | . . . . . . . 1 . . . . . . . Matter Decay 1 | . . . . . . . 1 . . . . . . . Siege Activations . | . . . . . . . . . . . . . . . Martial Activations . | . . . . . . . . . . . . . . . Shielding Activations . | . . . . . . . . . . . . . . . Robots Disrupted . | . . . . . . . . . . . . . . . Combat Hostiles . | . . . . . . . . . . . . . . . Robots Corrupted . | . . . . . . . . . . . . . . . Combat Hostiles . | . . . . . . . . . . . . . . . Parts Fried . | . . . . . . . . . . . . . . . Impact Corruptions . | . . . . . . . . . . . . . . . Robots Melted . | . . . . . . . . . . . . . . . Combat Hostiles . | . . . . . . . . . . . . . . . Parts Melted . | . . . . . . . . . . . . . . . Heat Transferred . | . . . . . . . . . . . . . . . Parts Sabotaged . | . . . . . . . . . . . . . . . Parts Stolen . | . . . . . . . . . . . . . . . Parts Stripped . | . . . . . . . . . . . . . . . Power Chain Reactions . | . . . . . . . . . . . . . . . Alert | -11 -10 -10 -10 -9 -8 -7 -6 -5 -5 -4 -3 -3 -2 -1 ------- Run | Yrd Mat Min Exi Min Mat Fac Fac Fac DSF Fac Res DSF Res Acc Maximum Alert Level . | . . . . . . . . . . . . . . . Low Security (%) 100 | 100 100 100 . 100 100 100 100 100 100 100 100 100 100 100 Level 1 . | . . . . . . . . . . . . . . . Level 2 . | . . . . . . . . . . . . . . . Level 3 . | . . . . . . . . . . . . . . . Level 4 . | . . . . . . . . . . . . . . . Level 5 . | . . . . . . . . . . . . . . . High Security . | . . . . . . . . . . . . . . . Max Security . | . . . . . . . . . . . . . . . Peak Influence 159 | . . . . 10 28 30 95 46 25 14 10 2 18 159 Initial 41 | . . . . . . . 9 41 25 . 3 2 . 2 Average 13 | . . . . 1 7 4 17 37 9 5 5 2 8 60 Influence Increases 534 | . . . . 10 32 57 131 15 . 27 13 . 24 225 Destroy 0b10 Robot/NC 65 | . . . . 10 . 10 5 . . 10 10 . 15 5 Destroy Leader 2 | . . . . . . . 2 . . . . . . . Successful Hack 122 | . . . . . 32 . 2 . . 9 3 . . 76 Disable Machine 30 | . . . . . . 15 . . . . . . . 15 Destroy Structure 90 | . . . . . . 2 2 . . 8 . . 9 69 Partial Spotted 15 | . . . . . . . . 15 . . . . . . Lose Combat Pursuer 210 | . . . . . . 30 120 . . . . . . 60 Influence Decreases 375 | . . . . 10 30 39 66 64 36 19 18 1 22 70 Entered New Map 78 | . . . . . . 2 11 44 11 . 5 1 2 2 Time Decay 212 | . . . . 10 30 37 33 20 . 19 13 . 20 30 Lost Part 85 | . . . . . . . 22 . 25 . . . . 38 Squads Dispatched 12 | . . . . . . 3 2 . . 1 1 1 . 4 Investigation 8 | . . . . . . 1 2 . . 1 1 . . 3 Extermination 1 | . . . . . . 1 . . . . . . . . Reinforcement 3 | . . . . . . 1 . . . . . 1 . 1 Assault . | . . . . . . . . . . . . . . . Garrison . | . . . . . . . . . . . . . . . Intercept . | . . . . . . . . . . . . . . . Searches Triggered . | . . . . . . . . . . . . . . . Construction Impeded . | . . . . . . . . . . . . . . . Haulers Reinforced . | . . . . . . . . . . . . . . . Active Scanning Responses . | . . . . . . . . . . . . . . . Cargo Convoy Interrupts . | . . . . . . . . . . . . . . . Stealth | -11 -10 -10 -10 -9 -8 -7 -6 -5 -5 -4 -3 -3 -2 -1 --------- Run | Yrd Mat Min Exi Min Mat Fac Fac Fac DSF Fac Res DSF Res Acc Distress Signals . | . . . . . . . . . . . . . . . Communications Jammed 6 | . . . . . . . . . . . . . . 6 Distress Signals 6 | . . . . . . . . . . . . . . 6 Times Spotted 49 | . . . . 6 9 3 12 1 1 3 1 1 1 11 Peak Tracking Total 9 | . . . . 4 9 2 8 1 1 3 1 1 1 7 Tactical Retreats 5 | . . . . . . 1 2 . . . . . . 2 Traps | -11 -10 -10 -10 -9 -8 -7 -6 -5 -5 -4 -3 -3 -2 -1 ------- Run | Yrd Mat Min Exi Min Mat Fac Fac Fac DSF Fac Res DSF Res Acc Traps Triggered 3 | . . . . . . . . . 1 . . 1 1 . Indirectly . | . . . . . . . . . . . . . . . Trap Hack Attempts . | . . . . . . . . . . . . . . . Triggered . | . . . . . . . . . . . . . . . Disarmed . | . . . . . . . . . . . . . . . Reprogrammed . | . . . . . . . . . . . . . . . Reused . | . . . . . . . . . . . . . . . Traps Extracted . | . . . . . . . . . . . . . . . Installed . | . . . . . . . . . . . . . . . Triggered . | . . . . . . . . . . . . . . . Machines | -11 -10 -10 -10 -9 -8 -7 -6 -5 -5 -4 -3 -3 -2 -1 ---------- Run | Yrd Mat Min Exi Min Mat Fac Fac Fac DSF Fac Res DSF Res Acc Machines Disabled 2 | . . . . . . 1 . . . . . . . 1 Max in Single Turn 1 | . . . . . . 1 . . . . . . . 1 Energy Cycler 1 | . . . . . . . . . . . . . . 1 Machines Repaired . | . . . . . . . . . . . . . . . Machines Dismantled . | . . . . . . . . . . . . . . . Machines Sabotaged . | . . . . . . . . . . . . . . . Overloaded Fab Kills . | . . . . . . . . . . . . . . . Hacking | -11 -10 -10 -10 -9 -8 -7 -6 -5 -5 -4 -3 -3 -2 -1 --------- Run | Yrd Mat Min Exi Min Mat Fac Fac Fac DSF Fac Res DSF Res Acc Machines Accessed 17 | . . . 1 . 2 2 3 1 . 1 2 . . 5 Terminals 13 | . . . . . 2 . 2 1 . 1 2 . . 5 Fabricators 1 | . . . . . . 1 . . . . . . . . Repair Stations . | . . . . . . . . . . . . . . . Recycling Units 1 | . . . . . . 1 . . . . . . . . Scanalyzers 1 | . . . . . . . 1 . . . . . . . Garrison Access . | . . . . . . . . . . . . . . . Total Hacks 53 | . . . 1 . 7 6 13 1 . 5 4 . . 16 Successful 21 | . . . 1 . 3 2 4 1 . 2 2 . . 6 Failed 31 | . . . . . 4 4 8 . . 3 2 . . 10 Catastrophic 12 | . . . . . 2 1 4 . . 2 . . . 3 Database Lockouts 1 | . . . . . . . 1 . . . . . . . Manual 34 | . . . 1 . 7 3 5 . . 5 3 . . 10 Terminals 41 | . . . . . 7 . 8 1 . 5 4 . . 16 Fabricators 3 | . . . . . . 3 . . . . . . . . Repair Stations . | . . . . . . . . . . . . . . . Recycling Units 3 | . . . . . . 3 . . . . . . . . Scanalyzers 5 | . . . . . . . 5 . . . . . . . Garrison Access . | . . . . . . . . . . . . . . . Terminal Hacks 8 | . . . 1 . . . . 1 . 1 1 . . 4 Open Door 1 | . . . . . . . . . . . . . . 1 Open DSF 2 | . . . . . . . . 1 . . 1 . . . Level Access Points 2 | . . . . . . . . . . 1 . . . 1 Terminal Index 1 | . . . . . . . . . . . . . . 1 Zone Layout 1 | . . . . . . . . . . . . . . 1 Proto ID Catalog 1 | . . . 1 . . . . . . . . . . . Fabricator Hacks . | . . . . . . . . . . . . . . . Repair Station Hacks . | . . . . . . . . . . . . . . . Recycling Unit Hacks 2 | . . . . . . 2 . . . . . . . . Report Inventory 1 | . . . . . . 1 . . . . . . . . Retrieve Components 1 | . . . . . . 1 . . . . . . . . Scanalyzer 4 | . . . . . . . 4 . . . . . . . Retrieve Study 4 | . . . . . . . 4 . . . . . . . Garrison Access Hacks . | . . . . . . . . . . . . . . . Unauthorized Hacks 6 | . . . . . 2 . . . . 1 1 . . 2 Terminals 6 | . . . . . 2 . . . . 1 1 . . 2 Botnet 6 | . . . . . 2 . . . . 1 1 . . 2 Fabricators . | . . . . . . . . . . . . . . . Repair Stations . | . . . . . . . . . . . . . . . Recycling Units . | . . . . . . . . . . . . . . . Scanalyzers . | . . . . . . . . . . . . . . . Garrison Access . | . . . . . . . . . . . . . . . Data Cores Recovered 1 | . . . . . . . . . . . 1 . . . Used 1 | . . . . . . . . . . . 1 . . . Hacking Detections 12 | . . . . . 2 2 2 1 . 1 1 . . 3 Full Trace Events 10 | . . . . . 2 1 2 . . 1 1 . . 3 Feedback Events 2 | . . . . . 1 . . . . . . . . 1 Corruption 1 | . . . . . 1 . . . . . . . . . Hackware Fried 1 | . . . . . . . . . . . . . . 1 Feedback Blocked . | . . . . . . . . . . . . . . . Robot Schematics Acquired . | . . . . . . . . . . . . . . . Robots Built . | . . . . . . . . . . . . . . . Authchips . | . . . . . . . . . . . . . . . Time . | . . . . . . . . . . . . . . . Total Robot Build Rating . | . . . . . . . . . . . . . . . Part Schematics Acquired . | . . . . . . . . . . . . . . . Parts Built . | . . . . . . . . . . . . . . . Authchips . | . . . . . . . . . . . . . . . Time . | . . . . . . . . . . . . . . . Total Part Build Rating . | . . . . . . . . . . . . . . . Part Studies Acquired 4 | . . . . . . . 4 . . . . . . . Parts Repaired . | . . . . . . . . . . . . . . . Time . | . . . . . . . . . . . . . . . Parts Recycled . | . . . . . . . . . . . . . . . Recycled Matter . | . . . . . . . . . . . . . . . Retrieved Matter . | . . . . . . . . . . . . . . . Retrieved Components 1 | . . . . . . 1 . . . . . . . . Parts Scanalyzed . | . . . . . . . . . . . . . . . Part Schematics Acquired . | . . . . . . . . . . . . . . . Parts Damaged . | . . . . . . . . . . . . . . . Bothacking | -11 -10 -10 -10 -9 -8 -7 -6 -5 -5 -4 -3 -3 -2 -1 ------------ Run | Yrd Mat Min Exi Min Mat Fac Fac Fac DSF Fac Res DSF Res Acc Used RIF Installer . | . . . . . . . . . . . . . . . Robots Hacked . | . . . . . . . . . . . . . . . Non-combat . | . . . . . . . . . . . . . . . Combat . | . . . . . . . . . . . . . . . Robot Hacks Applied . | . . . . . . . . . . . . . . . Relay Couplers Released . | . . . . . . . . . . . . . . . Fabnet Peak Effective % . | . . . . . . . . . . . . . . . Robots Rewired . | . . . . . . . . . . . . . . . Allies Hacked . | . . . . . . . . . . . . . . . Hacks Repelled . | . . . . . . . . . . . . . . . Allies | -11 -10 -10 -10 -9 -8 -7 -6 -5 -5 -4 -3 -3 -2 -1 -------- Run | Yrd Mat Min Exi Min Mat Fac Fac Fac DSF Fac Res DSF Res Acc Total Allies . | . . . . . . . . . . . . . . . Largest Group . | . . . . . . . . . . . . . . . Highest-Rated Group . | . . . . . . . . . . . . . . . Highest-Rated Ally . | . . . . . . . . . . . . . . . Total Orders . | . . . . . . . . . . . . . . . Ally Attacks . | . . . . . . . . . . . . . . . Total Damage . | . . . . . . . . . . . . . . . Kills . | . . . . . . . . . . . . . . . Allies Corrupted . | . . . . . . . . . . . . . . . Allies Melted . | . . . . . . . . . . . . . . . Intel | -11 -10 -10 -10 -9 -8 -7 -6 -5 -5 -4 -3 -3 -2 -1 ------- Run | Yrd Mat Min Exi Min Mat Fac Fac Fac DSF Fac Res DSF Res Acc Active Infowar (turns) 760 | . . . . . 76 181 192 46 49 50 41 11 47 67 Optics 760 | . . . . . 76 181 192 46 49 50 41 11 47 67 Structural 551 | . . . . . . 93 192 46 32 22 41 11 47 67 Jamming 206 | . . . . . . 56 . 21 32 . 20 11 13 53 Robot Analysis Total . | . . . . . . . . . . . . . . . Derelict Logs Recovered . | . . . . . . . . . . . . . . . Drone Launches . | . . . . . . . . . . . . . . . Drone Recoveries . | . . . . . . . . . . . . . . . Exploration | -11 -10 -10 -10 -9 -8 -7 -6 -5 -5 -4 -3 -3 -2 -1 ------------- Run | Yrd Mat Min Exi Min Mat Fac Fac Fac DSF Fac Res DSF Res Acc Turns Passed 1035 | 16 6 31 109 96 93 181 192 46 49 50 41 11 47 67 Spaces Moved 2142 | 28 11 58 215 147 173 272 379 124 74 123 96 30 140 272 Core 616 | 28 11 58 215 147 157 . . . . . . . . . Treads . | . . . . . . . . . . . . . . . Legs . | . . . . . . . . . . . . . . . Wheels . | . . . . . . . . . . . . . . . Hover 535 | . . . . . 16 272 214 . 33 . . . . . Flight 991 | . . . . . . . 165 124 41 123 96 30 140 272 Fastest Speed 16 | 50 50 50 50 50 50 56 26 32 29 27 21 21 17 16 Average Speed 39 | 50 50 50 50 50 50 56 43 32 44 28 21 21 18 17 Slowest Speed 60 | 50 50 50 50 50 60 60 56 32 60 29 27 21 19 20 Overloaded Moves 1 | . . . . . . . . . . . . . . 1 Propulsion Burnouts . | . . . . . . . . . . . . . . . Robots Hopped 7 | . . . . . . . 3 . . . . . . 4 Potential Cave-ins . | . . . . . . . . . . . . . . . Cave-ins Triggered . | . . . . . . . . . . . . . . . Exploration Rate (%) 23 | 3 4 19 60 47 26 12 20 7 71 7 4 50 8 14 Regions Visited 14 Branch Regions 3 Pre-discovered Areas . | . . . . . . . . . . . . . . . Known Exits Taken 5 | . . . . . . 1 1 1 . 1 1 . . . Unknown Exits Taken 7 | 1 1 1 1 1 1 . . . . . . . 1 . Scrap Searched 2 | . . 1 . 1 . . . . . . . . . . Spaces Dug 16 | . . . . . . 2 2 . . 4 . . 3 5 Terrain Destroyed 38 | . . . . . . 2 2 . . 4 . . 3 27 Melee 16 | . . . . . . 2 2 . . 4 . . 3 5 Projectile . | . . . . . . . . . . . . . . . AOE 22 | . . . . . . . . . . . . . . 22 Terrain Rammed . | . . . . . . . . . . . . . . . Walls Destroyed . | . . . . . . . . . . . . . . . Machines Disabled . | . . . . . . . . . . . . . . . Actions | -11 -10 -10 -10 -9 -8 -7 -6 -5 -5 -4 -3 -3 -2 -1 --------- Run | Yrd Mat Min Exi Min Mat Fac Fac Fac DSF Fac Res DSF Res Acc Total 2255 | 29 10 59 215 157 177 293 395 127 87 131 111 34 152 278 Wait 6 | . . . . . . . . . 2 . . 2 2 . Move 2113 | 27 10 57 214 146 172 271 372 123 73 122 95 29 139 263 Hop 7 | . . . . . . . 3 . . . . . . 4 Pick Up 24 | 2 . 1 . . 1 7 2 . 4 1 4 2 . . Fast Attach 24 | . . . 1 . 2 2 8 . 3 1 2 . 2 3 Attach 17 | . . . . . . 6 1 2 4 1 1 . 1 1 Detach 4 | . . . . . 1 1 1 . . . 1 . . . Swap 8 | . . . . . . 1 2 . 1 . 1 . 2 1 Drop 8 | . . . . . 1 . 3 . . . 3 1 . . Fire . | . . . . . . . . . . . . . . . Melee 43 | . . . . 11 . 5 3 2 . 6 4 . 6 6 Ram 1 | . . 1 . . . . . . . . . . . . Kick . | . . . . . . . . . . . . . . . Crush . | . . . . . . . . . . . . . . . Escape Stasis . | . . . . . . . . . . . . . . . Rewire . | . . . . . . . . . . . . . . . Trap . | . . . . . . . . . . . . . . . Miscellaneous . | . . . . . . . . . . . . . . . Route ------- -11/Scrapyard -10/Materials -10/Mines -10/Exiles -9/Mines -8/Materials -7/Factory -6/Factory -5/Factory -5/DSF -4/Factory (discovered 4 exits: *Res x4) -3/Research -3/DSF -2/Research -1/Access To Epsilon Eridani History --------- Turn | Location | Event 4 | -11/Scrapyard | Discovered new exit (range 16) 17 | -11/Scrapyard | Entered Materials 17 | -10/Materials | Discovered new exit (range 7) 23 | -10/Materials | Entered Mines 43 | -10/Mines | Found a Scrap Suit stashed away for nefarious purposes 44 | -10/Mines | Found Scrap Suit 52 | -10/Mines | Deemed a non-threat by the Exiles lab entrance 52 | -10/Mines | Discovered new exit (range 5) 54 | -10/Mines | Entered Exiles 67 | -10/Exiles | Met 8R-AWN 76 | -10/Exiles | Met EX-HEX 90 | -10/Exiles | Met EX-BIN 96 | -10/Exiles | Aligned with FarCom system 96 | -10/Exiles | Given EX-Vault access code 108 | -10/Exiles | Opened EX-Vault 111 | -10/Exiles | Found Longsword +1 122 | -10/Exiles | Warned to stay clear of 0b10 Research branches 139 | -10/Exiles | Met EX-DEC 156 | -10/Exiles | Discovered new exit (range 14) 163 | -10/Exiles | Left Exiles lab with Longsword +1 163 | -10/Exiles | Entered Mines 194 | -9/Mines | Excavation squad dispatched 194 | -9/Mines | A large section of the Mines collapsed 253 | -9/Mines | Discovered new exit (range 13) 259 | -9/Mines | Entered Materials 259 | -8/Materials | Evolved 4 slots: Propulsion x2, Utility x2 329 | -8/Materials | Build established: Mutant 340 | -8/Materials | Discovered new exit (range 19) 352 | -8/Materials | Entered Factory 352 | -7/Factory | Evolved 2 slots: Power x1, Propulsion x1 526 | -7/Factory | Discovered new exit (range 10) 532 | -7/Factory | Identified exit to Factory 533 | -7/Factory | Entered another Factory area 533 | -6/Factory | Evolved 2 slots: Propulsion x1, Utility x1 587 | -6/Factory | Central database locked down 654 | -6/Factory | Spotted B-75 Beast 699 | -6/Factory | Lost 7 parts (1p5n1u) 721 | -6/Factory | Discovered new exit (range 14) 725 | -6/Factory | Identified exit to Factory 725 | -6/Factory | Entered another Factory area 725 | -5/Factory | Evolved 2 slots: Utility x2 771 | -5/Factory | Identified exit to DSF 771 | -5/Factory | Entered DSF 790 | -5/DSF | Discovered new exit (range 20) 796 | -5/DSF | Additional patrols routed to DSF 820 | -5/DSF | Identified exit to Factory 820 | -5/DSF | Entered Factory 820 | -4/Factory | Evolved 2 slots: Power x1, Propulsion x1 834 | -4/Factory | Lost 5 parts (1p3n1u) 837 | -4/Factory | Identified exit to Research 870 | -4/Factory | Entered Research 870 | -3/Research | Evolved 2 slots: Propulsion x1, Utility x1 911 | -3/Research | Identified exit to DSF 911 | -3/Research | Entered DSF 917 | -3/DSF | Discovered new exit (range 20) 922 | -3/DSF | Identified exit to Research 922 | -3/DSF | Entered Research 922 | -2/Research | Evolved 2 slots: Power x1, Propulsion x1 964 | -2/Research | Discovered new exit (range 21) 969 | -2/Research | Entered Access 969 | -1/Access | Evolved 2 slots: Utility x2 998 | -1/Access | Hacking Suite fried by hacking feedback 1010 | -1/Access | Energy Cycler disabled 1025 | -1/Access | Identified exit to Surface 1036 | *** | Escaped! Last Messages --------------- 01009_ O-24 Administrator: "IFF HANDSHAKE FAILED. SECURING TERMINAL." 01010_ ALERT: Power surge detected, dispatching additional patrols. 01010_ Energy Cycler explodes. 01010_ Nuclear Pulse Array destroyed. 01010_ Destroyed Nuclear Pulse Array. 01010_ Lgt. Ion Engine destroyed. 01010_ Destroyed Lgt. Ion Engine. 01010_ O-24 Administrator destroyed. 01016_ Acquired Prototype Flight Unit. 01016_ Identified Cld. Impulse Thruster. 01024_ O-32 Director: "IFF HANDSHAKE FAILED. SECURING TERMINAL." 01025_ Connecting with Terminal... >>Access(Main) Found 1 level access point to Surface: (79,261) Map updated. 01033_ ALERT: Hostiles spotted, dispatching reinforcements to Terminal A008. 01035_ Connecting with Terminal... 01036_ The Access Shell folds into the floor. Map ----- +----------------------------------------------------+ | ############ + ?????????????????????? ?????????? | | ##???????? # # ??????????????????????" ?????????? | | ##???????? # # ??????????????????????? ?????????? | | ##???????? # # ?????????????????????????????????? | | ##???????? # ##?????????????????????????????????? | | ##???????? # ##?????????????????????????????????? | | ##???????? # ##?????????????????????????????????? | | ##???????? + ##?????????????????????????????????? | | ##???????? # ##?????????????????????????????????? | | ### # ######################## ##???????? | | ############ ######################## ##???????? | | p ##???????? | | t ##???????? | | ###############+##### ""###?????###???????? | | ## ### ""###???????????????? | | ?????????????? ??## ""##????????????????? | | ????????????? =?## T##????????????????? | | ????????????? ### ""##????????????????? | | ???????????? ! ### ""###???????????????? | | ???????????? ### ""###???????????????? | | ???????????" ## ##???????????????? | | ??????????? ### ###???????????????? | | ?????????? ### ###???????????????? | | ?????????? ### ##????????????????? | | ????????? ### ##????????????????? | | ??????? ### @" ##????????????????? | | ???????############## "" ##????????????????? | | ???????############## ##????????????????? | | ???????????????????## ##????????????????? | | ???????????????????## ##????????????????? | | ???????????????????##""""""""""##????????????????? | | ???????????????????##"????????"##????????????????? | | ?????????????????????????????????????????????????? | | ?????????????????????????????????????????????????? | | ?????????????????????????????????????????????????? | | ??????????????????????BB????BB???????????????????? | | ??????????????????????BB????BB???????????????????? | | ?????????????????????????????????????????????????? | | ?????????????????????????????????????????????????? | | ?????????????????????????????????????????????????? | | ?????????????????????????????????????????????????? | | ?????????????????????????????????????????????????? | | ?????????????????????????????????????????????????? | | ?????????????????????????????????????????????????? | | ?????????????????????????????????????????????????? | | ?????????????????????????????????????????????????? | | ?????????????????????????????????????????????????? | | ?????????????????????????????????????????????????? | | ?????????????????????????????????????????????????? | | ?????????????????????????????????????????????????? | +----------------------------------------------------+ Best States ------------- Heat Dissipation 74 Energy Generation 46 Energy Capacity 520 Matter Stores 300 Matter Capacity 300 Sight Range 22 Terrain Scan Density 10 Jamming Range 12 Additional Mass Support 9 Armor Coverage 225 Evasion (%) 66 Offensive Hacking 20 Defensive Hacking 22 Item Schematics ----------------- None Robot Schematics ------------------ None Fabricated ------------ Nothing Repaired ---------- Nothing Studied --------- Airjet | -6/Factory | Hacked Lgt. Nuclear Core | -6/Factory | Hacked Imp. Gravmag System | -6/Factory | Hacked Imp. Hover Unit | -6/Factory | Hacked Alien Tech Used ----------------- None Achievements -------------- None Challenges ------------ None Game ------ Seed TacticalShieldFemtoactuators Manual? 0 Play Time 00:25:57 Cumulative 286.1 hours Start 2025.11.25 @ 21:52:20 End 2025.11.25 @ 22:14:49 Sessions 1 Manual Loads 0 Difficulty Rogue Special Mode None Game No. 315 Rogue 315 Adventurer 0 Explorer 0 Win Type 0 Total 15 Types 8/0/3/1/1/0/0/1/0/1 Lore% 77 Gallery% 75 Achievement% 57 Wizard Run 0 Options --------- Layout 1 ASCII 0 Keyboard 1 Movement Numpad Keybinds 0 Fullscreen 0 Font 32/SmallcapsGlow Map View 77x35 Zoom Use 1% Tactical HUD 1 Map Filters NONE Filters NONE Steam 1 RUN: c8da5d81-66a7-4ef4-9980-2c4f25618dd4